bitfinex/quotes_SOLUSD_20240813
["timestamp","ask_amount","ask_price","bid_price","bid_amount"]
[1723539024795,6.4889,145.46,145.38,45.37647]
[1723539025628,6.8767,145.42,145.38,45.37647]
[1723539027533,6.8771,145.41,145.38,45.37647]
[1723539028334,6.4889,145.46,145.38,45.37647]
[1723539028506,6.4889,145.46,145.39,0.25098]
[1723539028706,20.0,145.45,145.39,0.12549]
[1723539028932,20.0,145.45,145.38,45.25098]
[1723539029515,6.8771,145.41,145.38,45.25098]
[1723539030844,6.8767,145.42,145.38,45.25098]
[1723539031138,26.8756,145.45,145.4,6.8775]
[1723539031337,6.6645,145.5,145.43,6.8758]
[1723539031635,6.8747,145.46,145.44,45.0]
[1723539031816,6.8752,145.45,145.44,45.0]
[1723539032022,6.8765,145.43,145.41,0.37647]
[1723539032630,6.8757,145.44,145.41,0.37647]
[1723539032940,6.8752,145.45,145.41,0.37647]
[1723539033547,6.8757,145.44,145.41,0.37647]
[1723539033749,6.8779,145.4,145.37,6.553]
[1723539033937,39.79,145.43,145.33,6.4396]
[1723539034246,6.8776,145.4,145.35,6.8798]
[1723539034441,20.0,145.39,145.35,6.8798]
[1723539034619,20.0,145.39,145.36,1.375645]
[1723539034819,20.0,145.39,145.33,23.6409]
[1723539034820,26.878,145.39,145.34,6.8803]
[1723539035021,6.8785,145.38,145.33,30.5217]
[1723539035234,20.0,145.39,145.33,6.4396]
[1723539035431,39.79,145.41,145.33,6.4396]
[1723539035432,6.8795,145.36,145.33,6.4396]
[1723539035639,6.8799,145.35,145.32,15.6205]
[1723539035844,6.8795,145.36,145.32,15.6205]
[1723539036054,6.879,145.37,145.32,22.5018]
[1723539036546,6.8795,145.36,145.32,15.6205]
[1723539036844,6.8795,145.36,145.33,45.12549]
[1723539037047,6.8795,145.36,145.33,45.25098]
[1723539038319,6.8795,145.36,145.33,45.0]
[1723539038548,6.8799,145.35,145.33,45.0]
[1723539038730,6.8799,145.35,145.3,24.0876]
[1723539039331,17.196,145.39,145.29,6.5069]
[1723539039648,39.79,145.37,145.29,6.5069]
[1723539039833,20.0,145.36,145.28,15.3584]
[1723539040350,39.79,145.35,145.26,6.6333]
[1723539040555,6.8823,145.3,145.26,6.6333]
[1723539041044,6.8823,145.3,145.25,6.8842]
[1723539041233,56.9906,145.35,145.26,17.2093]
[1723539041440,20.0,145.34,145.27,1.37634359]
[1723539041942,6.8809,145.33,145.28,7.00869]
[1723539042141,26.8814,145.32,145.29,45.0]
[1723539042317,26.8814,145.32,145.28,45.12549]
[1723539042520,26.8814,145.32,145.28,46.50189458]
[1723539042730,20.0,145.32,145.28,45.0]
[1723539042944,6.8823,145.3,145.25,6.8845]
[1723539043450,6.8823,145.3,145.24,15.1494]
[1723539043451,6.8818,145.31,145.26,8.26067955]
[1723539043746,6.8818,145.31,145.27,1.37654586]
[1723539044049,37.2018,145.34,145.24,15.1494]
[1723539044250,39.79,145.33,145.24,22.0341]
[1723539044547,6.8833,145.28,145.24,15.1494]
[1723539044747,20.0,145.32,145.24,15.1494]
[1723539044748,20.0,145.32,145.25,1.37673761]
[1723539044930,6.8822,145.31,145.26,6.8841]
[1723539045130,6.8824,145.3,145.25,6.8845]
[1723539045443,6.8824,145.3,145.26,0.25098]
[1723539045629,6.8824,145.3,145.26,45.25098]
[1723539045946,6.8818,145.31,145.26,52.13518]
[1723539046151,20.0,145.32,145.27,8.51074683]
[1723539046447,20.0,145.34,145.28,46.37643887]
[1723539046632,20.0,145.35,145.28,46.37643887]
[1723539047223,55.5662,145.38,145.29,0.25098]
[1723539047451,49.0894,145.36,145.28,45.12549]
[1723539047637,31.89,145.34,145.28,45.12549]
[1723539047823,31.89,145.34,145.29,0.12549]
[1723539048023,49.0894,145.36,145.29,0.50196]
[1723539048246,6.8808,145.33,145.29,0.50196]
[1723539048953,13.63465577,145.38,145.28,46.37626196]
[1723539048954,31.89,145.34,145.28,46.37626196]
[1723539049152,31.89,145.34,145.24,15.1494]
[1723539049153,31.89,145.32,145.24,32.3619]
[1723539049461,6.8823,145.3,145.26,6.8841]
[1723539049627,6.8819,145.31,145.27,6.8836]
[1723539049827,6.8814,145.32,145.27,6.8836]
[1723539050251,6.8809,145.33,145.29,0.12549]
[1723539050439,26.8814,145.32,145.29,0.25098]
[1723539051057,31.89,145.36,145.29,0.25098]
[1723539051058,6.8809,145.33,145.29,0.25098]
[1723539051350,6.8821,145.31,145.28,45.0]
[1723539051547,31.89,145.34,145.27,45.12549]
[1723539051850,49.0939,145.32,145.24,15.1494]
[1723539052032,6.8842,145.26,145.24,15.1494]
[1723539052353,6.8842,145.26,145.22,17.2142]
[1723539052857,6.8847,145.25,145.2,23.2241]
[1723539053057,6.8842,145.26,145.21,8.26350206]
[1723539053226,6.8842,145.26,145.21,6.8865]
[1723539053424,6.8847,145.25,145.2,23.2242]
[1723539054649,6.8847,145.25,145.21,45.0]
[1723539055060,6.8847,145.25,145.2,23.2242]
[1723539055258,31.89,145.26,145.19,17.2187]
[1723539055558,31.89,145.26,145.18,0.8156933]
[1723539055724,6.8861,145.22,145.18,0.8156933]
[1723539056354,6.8856,145.23,145.18,0.8156933]
[1723539056648,6.8847,145.25,145.2,6.887]
[1723539056855,49.0961,145.3,145.18,0.8156933]
[1723539057057,31.89,145.28,145.18,0.8156933]
[1723539057234,6.885,145.25,145.2,24.1036]
[1723539057549,6.8837,145.27,145.22,6.886]
[1723539057752,20.0,145.26,145.23,45.0]
[1723539058266,20.0,145.29,145.23,45.0]
[1723539058425,20.0,145.29,145.22,45.12549]
[1723539058836,20.0,145.29,145.22,45.0]
[1723539059051,6.8847,145.25,145.22,45.0]
[1723539059261,20.0,145.29,145.22,45.0]
[1723539059563,20.0,145.29,145.23,0.25098]
[1723539059743,48.1199,145.32,145.25,17.2116]
[1723539059744,20.0,145.31,145.25,17.2116]
[1723539060064,6.8842,145.26,145.23,16.39088]
[1723539060242,6.8837,145.27,145.24,45.0]
[1723539060443,6.8833,145.28,145.24,45.0]
[1723539060753,65.3244,145.32,145.25,17.33699]
[1723539060754,6.8823,145.3,145.25,17.33699]
[1723539060952,48.1199,145.32,145.26,45.0]
[1723539060953,6.8829,145.29,145.26,45.0]
[1723539061142,6.8837,145.27,145.26,45.0]
[1723539061326,48.1199,145.32,145.24,45.0]
[1723539061327,6.8842,145.26,145.24,45.0]
[1723539061533,7.18764242,145.28,145.24,45.0]
[1723539061971,16.4128,145.25,145.18,0.8156933]
[1723539062264,6.887,145.2,145.18,0.8156933]
[1723539062558,6.8856,145.23,145.18,0.8156933]
[1723539062736,20.0,145.22,145.18,7.7035933]
[1723539062935,20.0,145.22,145.18,0.8156933]
[1723539063138,6.8875,145.19,145.18,0.8156933]
[1723539063545,6.8866,145.21,145.18,0.8156933]
[1723539063763,6.886,145.23,145.18,0.8156933]
[1723539063979,20.0,145.24,145.18,0.8156933]
[1723539063980,26.8865,145.22,145.18,0.8156933]
[1723539064151,6.8871,145.2,145.18,0.8156933]
[1723539065862,6.8865,145.22,145.18,0.8156933]
[1723539066068,51.89,145.24,145.18,0.8156933]
[1723539066069,26.8866,145.21,145.18,0.8156933]
[1723539066254,6.8866,145.21,145.18,0.8156933]
[1723539066769,6.8861,145.22,145.18,0.8156933]
[1723539067072,20.0,145.21,145.18,0.8156933]
[1723539067252,6.8857,145.23,145.18,0.8156933]
[1723539067455,6.8857,145.23,145.18,7.7034933]
[1723539067658,6.8862,145.22,145.19,45.0]
[1723539067866,6.8862,145.22,145.18,0.8156933]
[1723539069867,6.8866,145.21,145.18,0.8156933]
[1723539070065,31.89,145.24,145.18,0.8156933]
[1723539070266,20.0,145.23,145.18,0.8156933]
[1723539070665,26.8856,145.23,145.18,7.7031933]
[1723539070869,26.8856,145.23,145.19,45.0]
[1723539071272,6.8861,145.22,145.19,45.0]
[1723539071475,6.8861,145.22,145.18,45.8156933]
[1723539071856,6.8861,145.22,145.18,52.7035933]
[1723539072572,6.8874,145.2,145.18,0.8156933]
[1723539072878,6.8865,145.22,145.18,0.8156933]
[1723539073076,20.0,145.21,145.18,0.8156933]
[1723539073374,31.89,145.26,145.18,0.8156933]
[1723539073583,6.886,145.23,145.18,7.7034933]
[1723539074077,6.8875,145.19,145.18,0.8156933]
[1723539074291,31.89,145.22,145.18,0.8156933]
[1723539074506,20.0,145.21,145.18,0.8156933]
[1723539074951,31.89,145.25,145.19,0.25098]
[1723539075156,6.8864,145.22,145.18,63.0346933]
[1723539075459,6.8864,145.22,145.18,45.8156933]
[1723539075859,6.8866,145.21,145.18,45.8156933]
[1723539076076,6.8866,145.21,145.18,0.8156933]
[1723539076260,6.8861,145.22,145.18,0.8156933]
[1723539077565,31.89,145.27,145.19,0.12549]
[1723539077760,6.886,145.23,145.19,62.59427]
[1723539078079,31.89,145.27,145.19,45.0]
[1723539078451,31.89,145.25,145.19,45.0]
[1723539078652,6.8861,145.22,145.19,45.0]
[1723539078878,31.89,145.25,145.19,45.0]
[1723539079081,20.0,145.24,145.19,45.0]
[1723539079284,31.89,145.23,145.18,0.8156933]
[1723539079589,6.887,145.2,145.18,0.8156933]
[1723539079882,6.8866,145.21,145.18,0.8156933]
[1723539080488,6.8862,145.22,145.18,0.8156933]
[1723539080693,31.89,145.27,145.18,0.8156933]
[1723539080864,7.17883194,145.28,145.22,17.2143]
[1723539081061,6.8836,145.28,145.24,6.885]
[1723539081278,6.8836,145.28,145.23,6.8855]
[1723539081483,6.8836,145.28,145.24,45.0]
[1723539081798,6.8832,145.28,145.24,45.0]
[1723539082091,6.8837,145.27,145.24,45.0]
[1723539082274,6.8837,145.27,145.23,45.25098]
[1723539082479,17.2078,145.29,145.23,45.0]
[1723539082779,6.8851,145.24,145.23,45.0]
[1723539083091,80.91582385,145.32,145.24,0.12549]
[1723539083305,6.8833,145.28,145.24,0.25098]
[1723539086882,6.8822,145.31,145.26,7.00959]
[1723539087189,20.0,145.3,145.26,0.12549]
[1723539087385,20.0,145.3,145.26,45.37647]
[1723539087891,6.8809,145.33,145.28,0.12549]
[1723539088088,6.8814,145.32,145.28,45.12549]
[1723539088289,6.8814,145.32,145.28,45.0]
[1723539088491,19.97772286,145.36,145.28,45.0]
[1723539088781,19.97772286,145.36,145.25,16.5906]
[1723539088782,17.2017,145.34,145.25,16.5906]
[1723539088983,6.8832,145.29,145.26,45.0]
[1723539089594,6.8823,145.3,145.26,45.0]
[1723539090178,6.8828,145.29,145.26,45.0]
[1723539090566,6.8824,145.3,145.26,45.0]
[1723539090891,6.8822,145.31,145.27,1.37669123]
[1723539091097,39.88,145.35,145.27,1.37669123]
[1723539091098,6.8814,145.32,145.27,6.8836]
[1723539091283,20.0,145.31,145.28,45.0]
[1723539091467,26.8818,145.31,145.28,45.0]
[1723539092177,20.0,145.31,145.28,45.0]
[1723539092379,20.0,145.34,145.27,45.0]
[1723539092572,20.0,145.34,145.25,16.5906]
[1723539092573,17.2029,145.33,145.25,16.5906]
[1723539092795,6.8842,145.26,145.25,16.5906]
[1723539093107,6.8836,145.28,145.25,16.5906]
[1723539093795,6.8828,145.29,145.25,16.5906]
[1723539093964,20.0,145.32,145.25,23.4751]
[1723539094165,6.8831,145.29,145.25,16.5906]
[1723539094370,20.0,145.32,145.26,45.0]
[1723539094371,6.8832,145.28,145.26,45.0]
[1723539097186,6.8828,145.29,145.26,45.0]
[1723539097885,17.2015,145.34,145.26,45.0]
[1723539098086,6.8823,145.3,145.26,51.8838]
[1723539098574,6.8823,145.3,145.26,45.0]
[1723539099087,6.8823,145.3,145.26,51.8841]
[1723539099282,17.2015,145.34,145.26,51.8841]
[1723539099283,6.8819,145.31,145.26,51.8841]
[1723539099495,20.0,145.3,145.26,51.8841]
[1723539100996,20.0,145.3,145.26,45.0]
[1723539101198,20.0,145.33,145.26,45.0]
[1723539101403,6.8837,145.28,145.26,45.0]
[1723539101788,6.8837,145.27,145.26,45.0]
[1723539102690,6.8833,145.28,145.26,45.0]
[1723539103404,6.8824,145.3,145.26,45.0]
[1723539103618,6.8828,145.29,145.26,45.0]
[1723539104588,6.8824,145.3,145.26,45.0]
[1723539104901,6.8819,145.31,145.26,51.884]
[1723539105104,20.0,145.3,145.26,51.884]
[1723539106382,26.8823,145.3,145.26,45.0]
[1723539107504,6.8828,145.29,145.26,45.0]
[1723539108520,6.8832,145.28,145.25,16.5906]
[1723539108806,20.0,145.3,145.23,6.6526]
[1723539108994,20.0,145.3,145.22,15.9008]
[1723539108995,6.8851,145.24,145.22,15.9008]
[1723539109192,31.9,145.27,145.19,22.1921]
[1723539109704,0.37647,145.29,145.18,0.8156933]
[1723539109705,31.9,145.25,145.18,0.8156933]
[1723539109928,20.0,145.24,145.18,0.8156933]
[1723539110226,20.0,145.24,145.18,7.7032933]
[1723539110509,6.886,145.23,145.18,7.7032933]
[1723539110689,20.0,145.24,145.18,7.7032933]
[1723539110690,26.8861,145.22,145.18,0.8156933]
[1723539110886,6.8861,145.22,145.18,0.8156933]
[1723539112498,6.8861,145.22,145.19,0.25098]
[1723539113509,6.8852,145.24,145.19,7.13838]
[1723539113704,6.8852,145.24,145.2,45.37647]
[1723539114099,6.8857,145.23,145.2,45.37647]
[1723539114418,6.8857,145.23,145.21,45.0]
[1723539114587,6.8857,145.23,145.2,0.25098]
[1723539114786,31.9,145.27,145.2,0.25098]
[1723539115003,6.8857,145.23,145.2,0.25098]
[1723539116518,17.2122,145.25,145.19,45.0]
[1723539116721,6.8869,145.21,145.19,45.0]
[1723539116905,6.8871,145.2,145.18,0.8156933]
[1723539117214,6.8875,145.19,145.18,0.8156933]
[1723539118189,6.8871,145.2,145.18,0.8156933]
[1723539118590,6.8875,145.19,145.18,0.8156933]
[1723539120413,6.887,145.2,145.18,0.8156933]
[1723539120793,6.8875,145.19,145.18,0.8156933]
[1723539121109,6.8869,145.21,145.18,0.8156933]
[1723539121318,7.18136866,145.25,145.19,7.01269]
[1723539121497,6.8855,145.24,145.2,46.37726828]
[1723539121697,6.8855,145.24,145.2,45.0]
[1723539121898,6.8847,145.25,145.2,51.887]
[1723539122104,6.8847,145.25,145.21,1.37715242]
[1723539122397,6.8852,145.24,145.2,45.0]
[1723539122592,6.8861,145.22,145.2,45.0]
[1723539122814,49.11,145.27,145.2,45.0]
[1723539123419,23.73613163,145.29,145.21,0.25098]
[1723539123595,6.8847,145.25,145.21,0.25098]
[1723539123797,17.2088,145.28,145.2,45.0]
[1723539124022,48.4584,145.29,145.21,0.12549]
[1723539124221,7.17817095,145.3,145.23,7.01069]
[1723539124419,6.8836,145.28,145.24,45.0]
[1723539125114,6.8838,145.27,145.24,45.0]
[1723539125323,6.8843,145.26,145.23,45.0]
[1723539125505,6.8838,145.27,145.23,45.0]
[1723539125702,6.8838,145.27,145.24,0.12549]
[1723539127530,7.18166029,145.33,145.24,0.25098]
[1723539127697,6.0296,145.34,145.26,0.12549]
[1723539127698,6.8829,145.29,145.26,0.12549]
[1723539127902,6.8823,145.3,145.26,1.62757484]
[1723539128235,20.0,145.29,145.24,0.12549]
[1723539128410,6.884,145.27,145.24,0.12549]
[1723539128616,20.0,145.29,145.23,45.0]
[1723539128913,17.2085,145.28,145.22,45.12549]
[1723539129109,6.8853,145.24,145.22,45.12549]
[1723539129311,6.8853,145.24,145.22,45.0]
[1723539130229,6.8842,145.26,145.22,45.0]
[1723539130404,17.2085,145.28,145.22,45.0]
[1723539130405,6.8838,145.27,145.22,53.26296671]
[1723539130723,6.8832,145.29,145.24,6.8851]
[1723539130926,26.8836,145.28,145.23,0.12549]
[1723539131131,6.8841,145.27,145.23,0.12549]
[1723539131297,6.8852,145.24,145.22,45.0]
[1723539131498,6.8847,145.25,145.22,45.0]
[1723539131815,6.8846,145.25,145.22,45.0]
[1723539132015,6.8846,145.25,145.22,46.37707742]
[1723539132217,20.0,145.3,145.22,53.26297742]
[1723539132507,20.0,145.3,145.23,7.13618]
[1723539132815,19.97347184,145.32,145.24,45.12549]
[1723539132816,20.0,145.31,145.24,45.12549]
[1723539133206,59.88,145.31,145.24,45.0]
[1723539133828,6.8838,145.27,145.24,45.0]
[1723539134022,6.8832,145.28,145.23,53.26222071]
[1723539134229,6.8837,145.27,145.23,45.0]
[1723539134635,6.8842,145.26,145.23,45.0]
[1723539134931,6.8842,145.26,145.22,45.37647]
[1723539135128,39.88,145.29,145.22,45.0]
[1723539135430,6.8842,145.26,145.22,45.0]
[1723539136016,6.8848,145.25,145.22,45.0]
[1723539136315,6.8852,145.24,145.22,45.0]
[1723539136522,6.8856,145.23,145.19,6.36]
[1723539137730,6.8846,145.25,145.2,6.8869]
[1723539137934,17.2088,145.28,145.2,6.8869]
[1723539137935,17.2088,145.28,145.21,1.37715595]
[1723539138138,6.8853,145.24,145.2,45.12549]
[1723539138305,17.2088,145.28,145.2,45.0]
[1723539138306,6.8857,145.23,145.2,45.0]
[1723539139107,6.8846,145.26,145.21,7.26287]
[1723539139304,6.8837,145.27,145.23,0.12549]
[1723539139620,6.8837,145.27,145.23,7.13648]
[1723539139827,6.8837,145.27,145.24,45.0]
[1723539140031,6.8833,145.28,145.24,45.0]
[1723539140211,6.8826,145.3,145.25,6.8845]
[1723539140540,20.0,145.29,145.26,45.0]
[1723539142824,6.884,145.27,145.24,0.12549]
[1723539143031,6.884,145.27,145.24,45.0]
[1723539143540,6.8842,145.26,145.23,16.1073]
[1723539143838,6.8847,145.25,145.2,24.1037]
[1723539144037,6.8837,145.27,145.22,6.886]
[1723539144840,6.8837,145.27,145.23,45.0]
[1723539145212,6.8842,145.26,145.23,45.0]
[1723539145420,6.8837,145.27,145.23,51.8855]
[1723539146248,6.8833,145.28,145.23,51.8855]
[1723539146425,6.8833,145.28,145.23,53.26235523]
[1723539146628,6.8838,145.27,145.23,45.0]
[1723539146821,20.0,145.29,145.23,45.0]
[1723539147027,6.8852,145.24,145.19,46.3513]
[1723539148037,6.8857,145.23,145.19,39.4639]
[1723539148357,31.9,145.27,145.18,7.7035933]
[1723539148358,65.1825,145.27,145.18,0.8156933]
[1723539148558,20.0,145.26,145.18,7.7035933]
[1723539148856,6.8856,145.23,145.19,6.8874]
[1723539149063,6.8852,145.24,145.19,6.8874]
[1723539149242,6.8847,145.25,145.2,6.887]
[1723539149586,20.0,145.24,145.2,6.8869]
[1723539149731,26.8852,145.24,145.19,7.01289]
[1723539149930,26.8852,145.24,145.2,45.0]
[1723539150467,20.0,145.24,145.18,18.0349933]
[1723539150757,20.0,145.26,145.18,0.8156933]
[1723539150964,6.8861,145.22,145.18,0.8156933]
[1723539151140,6.8857,145.23,145.18,7.7035933]
[1723539151660,20.0,145.26,145.18,7.7035933]
[1723539151661,6.8861,145.22,145.18,7.7035933]
[1723539151831,20.0,145.26,145.19,6.8874]
[1723539152857,6.8852,145.24,145.19,6.8874]
[1723539153764,6.8858,145.23,145.18,7.7035933]
[1723539154063,6.8861,145.22,145.19,45.0]
[1723539154247,6.8867,145.21,145.18,45.8156933]
[1723539155470,6.886,145.23,145.18,45.8156933]
[1723539155648,6.8862,145.22,145.18,45.8156933]
[1723539155851,6.8862,145.22,145.18,52.7035933]
[1723539156240,6.8856,145.23,145.18,52.7035933]
[1723539156561,6.8851,145.25,145.18,45.8156933]
[1723539156734,48.3133,145.31,145.21,15.6065]
[1723539156940,48.3133,145.31,145.22,46.376954]
[1723539157133,6.8833,145.28,145.24,6.8851]
[1723539157871,6.8833,145.28,145.22,45.0]
[1723539157872,6.8832,145.28,145.25,45.0]
[1723539158080,23.2176,145.32,145.27,6.8836]
[1723539158081,6.8817,145.32,145.27,6.8836]
[1723539158545,6.8818,145.31,145.26,6.8841]
[1723539158735,6.8823,145.3,145.27,45.0]
[1723539159138,6.8828,145.29,145.26,45.0]
[1723539161157,6.8832,145.28,145.26,45.0]
[1723539161350,6.8832,145.28,145.24,0.12549]
[1723539161552,6.8832,145.28,145.24,45.25098]
[1723539162448,6.8832,145.28,145.23,6.8855]
[1723539162872,49.1029,145.33,145.22,17.2149]
[1723539162873,6.8828,145.29,145.24,6.8851]
[1723539163263,6.8819,145.31,145.26,6.8841]
[1723539163577,26.8823,145.3,145.25,24.0961]
[1723539163869,26.8823,145.3,145.26,51.8841]
[1723539164068,6.8828,145.29,145.26,45.0]
[1723539165058,20.0,145.3,145.25,45.0]
[1723539165258,49.1029,145.33,145.22,17.2148]
[1723539165259,6.8838,145.27,145.22,17.2148]
[1723539165579,6.8828,145.29,145.24,6.8847]
[1723539165877,6.8828,145.29,145.25,45.0]
[1723539166367,6.8828,145.29,145.25,51.8846]
[1723539166880,6.8828,145.29,145.25,45.0]
[1723539168180,6.8823,145.3,145.25,51.8846]
[1723539168474,20.0,145.29,145.25,51.8846]
[1723539168978,48.3133,145.35,145.26,0.37647]
[1723539169156,20.0,145.34,145.26,0.37647]
[1723539169358,6.8822,145.31,145.26,7.26057]
[1723539169582,6.8822,145.31,145.27,45.0]
[1723539169775,20.0,145.3,145.27,45.0]
[1723539170355,26.8823,145.3,145.27,45.0]
[1723539170558,20.0,145.3,145.27,45.0]
[1723539170758,6.8819,145.31,145.27,45.0]
[1723539171088,20.0,145.3,145.27,45.0]
[1723539172680,26.8823,145.3,145.27,45.0]
[1723539173152,26.8823,145.3,145.26,45.12549]
[1723539173352,6.8828,145.29,145.26,45.0]
[1723539173983,6.8828,145.29,145.25,45.12549]
[1723539174171,26.8823,145.3,145.25,52.01009]
[1723539174358,6.8827,145.29,145.25,52.01009]
[1723539175693,26.8823,145.3,145.25,52.01009]
[1723539176005,6.8828,145.29,145.25,52.01009]
[1723539176294,6.8828,145.29,145.25,45.0]
[1723539176503,20.0,145.3,145.25,45.0]
[1723539176504,20.0,145.3,145.25,46.37675189]
[1723539176689,20.0,145.3,145.25,51.8845]
[1723539176690,6.8824,145.3,145.25,51.8845]
[1723539176894,20.0,145.33,145.25,45.0]
[1723539176895,6.8832,145.29,145.25,45.0]
[1723539177088,6.8833,145.28,145.25,45.0]
[1723539177280,6.8833,145.28,145.24,17.2118]
[1723539177603,51.9,145.33,145.24,17.2118]
[1723539177604,51.9,145.33,145.24,18.58865617]
[1723539177787,51.9,145.33,145.25,45.0]
[1723539178898,20.0,145.33,145.25,51.8846]
[1723539179802,6.8824,145.3,145.25,51.8846]
[1723539180300,6.8818,145.31,145.26,6.8842]
[1723539180606,6.8818,145.31,145.27,45.0]
[1723539180783,20.0,145.3,145.27,45.0]
[1723539181383,20.0,145.3,145.27,51.8836]
[1723539181891,6.8809,145.33,145.27,61.47]
[1723539182185,19.18863595,145.35,145.29,6.8826]
[1723539182186,20.0,145.32,145.29,6.8826]
[1723539182386,26.8809,145.33,145.29,6.8826]
[1723539182611,26.8809,145.33,145.28,24.0906]
[1723539182780,6.8815,145.32,145.29,45.0]
[1723539182981,20.0,145.33,145.29,51.8827]
[1723539183581,6.8817,145.32,145.29,45.0]
[1723539183907,26.8809,145.33,145.29,45.0]
[1723539185099,16.2064,145.39,145.3,1.7526378]
[1723539185417,6.8798,145.36,145.31,6.8818]
[1723539185609,20.0,145.35,145.32,46.37611109]
[1723539186213,20.0,145.35,145.33,1.37602791]
[1723539186820,26.88,145.35,145.32,45.0]
[1723539187124,26.88,145.35,145.31,45.0]
[1723539187291,26.88,145.35,145.32,0.25098]
[1723539187707,20.0,145.35,145.32,0.25098]
[1723539189887,6.8799,145.35,145.32,0.25098]
[1723539190504,6.8804,145.35,145.31,1.37598317]
[1723539190883,6.8804,145.35,145.3,24.0873]
[1723539191792,6.8804,145.34,145.31,45.37647]
[1723539192408,20.0,145.39,145.31,45.37647]
[1723539192409,6.88,145.35,145.31,45.37647]
[1723539193105,6.88,145.35,145.31,52.25817]
[1723539193307,6.8781,145.39,145.34,6.8802]
[1723539193611,6.8781,145.39,145.35,46.37580992]
[1723539193795,15.4246,145.42,145.34,45.0]
[1723539193999,15.4246,145.42,145.35,0.12549]
[1723539194315,15.4246,145.42,145.35,0.25098]
[1723539194793,6.8786,145.38,145.35,0.25098]
[1723539195204,20.0,145.41,145.35,8.50640427]
[1723539195504,6.8779,145.4,145.36,45.0]
[1723539195710,17.1909,145.43,145.36,45.0]
[1723539195711,20.0,145.39,145.36,45.0]
[1723539195914,49.0909,145.43,145.35,45.25098]
[1723539196299,6.8786,145.38,145.35,45.25098]
[1723539196610,6.879,145.37,145.35,45.0]
[1723539196815,6.879,145.37,145.34,45.0]
[1723539197312,6.8786,145.38,145.34,45.0]
[1723539197615,6.878,145.39,145.34,51.8801]
[1723539197796,20.0,145.38,145.34,51.8801]
[1723539198197,26.8787,145.38,145.34,45.0]
[1723539198394,6.8791,145.37,145.34,45.0]
[1723539199411,6.8785,145.38,145.34,45.0]
[1723539200826,6.8785,145.38,145.34,51.8803]
[1723539201342,6.8781,145.39,145.35,0.12549]
[1723539201500,6.8781,145.39,145.35,1.50129931]
[1723539201808,20.0,145.38,145.35,0.12549]
[1723539202007,20.0,145.38,145.35,0.25098]
[1723539202217,20.0,145.38,145.35,1.62670533]
[1723539202607,20.0,145.38,145.35,0.25098]
[1723539203704,26.8785,145.38,145.35,0.25098]
[1723539211426,20.0,145.38,145.35,7.13068]
[1723539211613,12.74,145.42,145.36,51.8793]
[1723539211822,19.8992091,145.43,145.36,51.8793]
[1723539212014,20.0,145.42,145.37,8.25408523]
[1723539212331,6.8771,145.41,145.38,45.0]
[1723539212529,20.0,145.4,145.38,45.0]
[1723539212721,20.0,145.4,145.39,0.12549]
[1723539213030,26.8777,145.4,145.38,45.0]
[1723539213224,26.8777,145.4,145.37,45.12549]
[1723539214029,6.8781,145.39,145.37,45.0]